bitfinex/quotes_ETHUSD_20250519
["timestamp","ask_amount","ask_price","bid_price","bid_amount"]
[1747630553300,8.08631963,2355.0,2354.9,17.22499178]
[1747630553805,8.08631963,2355.0,2354.9,17.97588477]
[1747630553968,2.72395435,2355.0,2354.9,17.97588477]
[1747630554167,1.28813905,2355.0,2354.9,25.97588477]
[1747630554484,0.8273,2356.8,2355.6,0.8173]
[1747630554689,4.24403338,2356.3,2355.8,4.24483154]
[1747630555279,4.24336249,2356.7,2356.1,4.24418832]
[1747630555280,4.24332538,2356.7,2356.1,4.24418832]
[1747630555486,4.24349939,2356.6,2356.2,10.862]
[1747630555688,0.7889,2357.1,2356.2,10.862]
[1747630555897,0.7889,2357.1,2356.2,12.02597]
[1747630555898,4.24353197,2356.6,2356.2,12.02597]
[1747630556403,4.24336161,2356.7,2356.2,10.862]
[1747630556701,4.2431731,2356.8,2356.2,15.10602743]
[1747630556898,4.24332,2356.7,2356.3,0.7822]
[1747630557194,4.24232139,2357.2,2356.3,0.7822]
[1747630557401,4.24335773,2356.7,2356.4,10.861]
[1747630557601,4.24214143,2357.3,2356.4,10.861]
[1747630557791,0.8194,2357.4,2356.5,22.58055311]
[1747630557988,4.24202205,2357.4,2356.7,5.03057382]
[1747630558300,1.47546637,2357.6,2356.7,5.03057382]
[1747630558301,4.2423486,2357.2,2356.7,0.7875]
[1747630558500,1.47546637,2357.6,2356.7,11.5415]
[1747630558669,4.24239124,2357.2,2356.7,11.5415]
[1747630558875,4.24239124,2357.2,2356.7,0.7875]
[1747630559073,4.24196148,2357.4,2356.8,10.859]
[1747630559277,1.47546637,2357.6,2357.5,4.24178154]
[1747630559472,5.77583552,2359.1,2358.3,4.24034261]
[1747630559473,3.29498599,2359.1,2358.3,4.24034261]
[1747630559698,7.5340591,2359.1,2358.4,0.7593]
[1747630559906,3.29498599,2359.1,2358.6,4.23965095]
[1747630560106,3.29498599,2359.1,2358.5,18.333]
[1747630560404,4.23962352,2358.7,2358.6,10.859]
[1747630560574,4.23969605,2358.7,2358.6,10.859]
[1747630560775,3.29498599,2359.1,2358.6,10.859]
[1747630560988,4.72688396,2359.0,2358.6,10.859]
[1747630561187,3.29498599,2359.1,2358.6,10.859]
[1747630561387,3.29498599,2359.1,2358.6,4.08293]
[1747630561587,4.23888051,2359.2,2358.7,21.726]
[1747630561809,2.04576308,2359.7,2358.7,25.96551865]
[1747630561810,4.23818605,2359.5,2358.7,25.96551865]
[1747630562024,2.04576308,2359.7,2358.8,4.23927895]
[1747630562335,4.23859055,2359.3,2358.7,21.726]
[1747630562534,2.04576308,2359.7,2358.7,21.726]
[1747630562738,2.04576308,2359.7,2358.5,18.333]
[1747630562939,4.23884995,2359.2,2358.8,21.705]
[1747630563233,4.23880981,2359.2,2358.8,21.705]
[1747630563399,2.04576308,2359.7,2358.8,21.705]
[1747630563589,4.23884521,2359.2,2358.8,21.705]
[1747630563784,4.23871849,2359.3,2358.8,21.705]
[1747630563990,4.23980327,2358.6,2358.5,18.333]
[1747630564208,4.23927418,2358.9,2358.5,29.187]
[1747630564412,4.23980327,2358.6,2358.5,18.333]
[1747630564608,4.23980327,2358.6,2358.5,29.184]
[1747630564811,4.23980327,2358.6,2358.5,18.333]
[1747630565012,4.23980327,2358.6,2358.5,29.184]
[1747630565410,4.23980327,2358.6,2358.5,18.333]
[1747630565611,4.23980327,2358.6,2358.5,29.184]
[1747630567295,4.23980327,2358.6,2358.5,18.333]
[1747630567494,4.23980327,2358.6,2358.5,29.182]
[1747630569305,4.23944378,2358.8,2358.2,10.849]
[1747630569631,4.24034261,2358.3,2358.2,10.849]
[1747630570202,4.24016282,2358.4,2357.9,10.848]
[1747630570398,4.24124183,2357.8,2357.7,18.317]
[1747630570605,4.24124183,2357.8,2357.7,29.165]
[1747630570992,4.24124183,2357.8,2357.7,18.317]
[1747630571190,4.24124183,2357.8,2357.7,29.165]
[1747630571827,4.24016282,2358.4,2357.7,29.165]
[1747630572027,4.24124183,2357.8,2357.7,29.165]
[1747630572597,4.24124183,2357.8,2357.7,18.317]
[1747630572805,4.24124183,2357.8,2357.7,29.165]
[1747630573004,4.24124183,2357.8,2357.7,18.317]
[1747630573227,4.24124183,2357.8,2357.7,29.165]
[1747630574320,4.24124183,2357.8,2357.7,18.317]
[1747630575046,4.24257141,2357.1,2356.8,19.0746]
[1747630575249,4.24285187,2357.0,2356.9,10.848]
[1747630575944,4.24286138,2356.9,2356.8,19.0746]
[1747630576147,4.24286138,2356.9,2356.8,29.9236]
[1747630577209,4.24286138,2356.9,2356.8,19.0746]
[1747630577414,4.24286138,2356.9,2356.8,29.164]
[1747630577608,4.24271046,2357.0,2356.8,29.164]
[1747630577609,4.24274125,2357.0,2356.8,29.164]
[1747630577822,4.24253802,2357.1,2356.8,29.164]
[1747630578146,4.24233188,2357.2,2356.8,32.0804]
[1747630578749,0.7511,2357.9,2356.9,11.3284]
[1747630579059,4.24143996,2357.7,2357.2,4.24221868]
[1747630579267,4.24156045,2357.7,2357.3,10.849]
[1747630579556,4.24168855,2357.6,2357.3,10.849]
[1747630579756,10.529,2358.6,2357.4,11.3084]
[1747630579916,4.24078982,2358.1,2357.5,4.24168601]
[1747630580112,4.2403628,2358.3,2357.7,4.24133725]
[1747630580331,4.2403628,2358.3,2357.9,0.7814]
[1747630580537,4.24004147,2358.5,2357.9,0.7814]
[1747630580723,4.23998304,2358.5,2357.9,0.7814]
[1747630580931,4.24054242,2358.2,2358.0,10.534]
[1747630581139,4.24043645,2358.3,2358.0,10.534]
[1747630582025,4.2403018,2358.4,2358.0,10.534]
[1747630582225,4.23977194,2358.7,2358.1,4.2406435]
[1747630582425,0.3206014,2359.5,2358.3,4.24018999]
[1747630582426,15.50436318,2359.5,2358.3,4.24018999]
[1747630582627,4.23869808,2359.3,2358.8,0.8315]
[1747630582851,4.23861097,2359.3,2358.9,28.849]
[1747630583352,0.7671,2359.8,2358.9,28.849]
[1747630583654,5.00266313,2361.0,2359.2,0.8315]
[1747630583827,0.7671,2361.0,2360.0,0.8315]
[1747630584148,4.23591225,2360.8,2360.2,4.23678334]
[1747630584350,4.23563637,2361.0,2360.3,4.27908995]
[1747630584552,4.23577745,2360.9,2360.3,4.2367338]
[1747630584916,4.23577192,2360.9,2360.3,4.54981817]
[1747630585257,4.23590855,2360.8,2360.4,0.45498182]
[1747630585426,4.89511681,2360.7,2360.4,0.45498182]
[1747630585626,4.89517124,2360.7,2360.4,0.45498182]
[1747630585829,4.2351879,2361.2,2360.1,18.316]
[1747630586033,4.23630356,2360.6,2360.2,21.148]
[1747630586226,4.23607997,2360.7,2360.2,21.148]
[1747630586430,4.23604416,2360.7,2360.2,21.46615194]
[1747630586631,4.23628439,2360.6,2360.2,21.44915194]
[1747630586828,4.23628439,2360.6,2360.3,3.97651519]
[1747630587029,4.23503212,2361.3,2360.4,0.7615]
[1747630587343,10.604,2361.7,2360.5,10.529]
[1747630587654,4.23621113,2360.6,2360.5,10.529]
[1747630587823,4.23441734,2361.6,2360.4,0.7615]
[1747630588153,4.23633681,2360.6,2360.5,10.529]
[1747630588319,4.23633681,2360.6,2360.5,11.65805]
[1747630588520,4.23608808,2360.7,2360.5,11.65805]
[1747630588721,4.23601513,2360.8,2360.5,11.65805]
[1747630589072,4.23441734,2361.6,2360.5,11.65805]
[1747630589073,4.23562101,2361.0,2360.5,11.65805]
[1747630589251,4.23057512,2363.8,2360.5,11.65805]
[1747630589252,4.23527548,2361.2,2360.5,11.65805]
[1747630589448,0.8015,2361.8,2360.6,11.838955]
[1747630589631,4.23502363,2361.3,2360.7,4.23602219]
[1747630589818,4.23502363,2361.3,2360.6,11.838955]
[1747630589819,4.23518898,2361.2,2360.6,11.838955]
[1747630590016,4.23515277,2361.2,2360.7,4.2359885]
[1747630590222,4.23500099,2361.3,2360.8,1.60749435]
[1747630590421,4.23567283,2360.9,2360.8,12.18249435]
[1747630590621,4.23484097,2361.4,2360.8,12.18249435]
[1747630590622,4.23465933,2361.5,2360.8,22.70349435]
[1747630590866,4.23567283,2360.9,2360.8,22.70349435]
[1747630591367,4.23555663,2361.0,2360.8,22.70349435]
[1747630591572,4.23550877,2361.0,2360.9,2.27034944]
[1747630591768,5.03558319,2361.8,2360.9,2.27034944]
[1747630591769,4.23536455,2361.1,2360.9,2.27034944]
[1747630591927,4.23536455,2361.1,2360.9,10.523]
[1747630592264,4.23423804,2361.7,2360.9,10.523]
[1747630592462,4.23514088,2361.2,2360.9,10.523]
[1747630592769,4.23525617,2361.2,2361.1,0.8292]
[1747630592927,4.23525617,2361.2,2361.1,11.3522]
[1747630593129,4.23511356,2361.3,2361.1,11.3522]
[1747630593362,4.23513467,2361.2,2361.1,11.3522]
[1747630593725,4.23531404,2361.1,2361.0,18.299]
[1747630594021,0.8015,2361.8,2361.0,28.822]
[1747630594358,10.49,2361.9,2361.0,32.7542]
[1747630594558,0.7849,2362.4,2361.2,4.23513467]
[1747630594856,4.23377079,2362.0,2361.3,14.7359027]
[1747630595081,5.01791022,2362.4,2361.4,5.76331044]
[1747630595237,4.23406784,2361.8,2361.6,0.8231]
[1747630595571,4.23396506,2361.9,2361.7,10.522]
[1747630595961,4.23401229,2361.9,2361.7,10.522]
[1747630596163,4.23423804,2361.7,2361.6,11.2911]
[1747630596341,4.23423804,2361.7,2361.6,22.94221]
[1747630596543,4.23395969,2361.9,2361.6,1.95221]
[1747630596874,4.23531404,2361.1,2360.9,0.8328]
[1747630597041,4.23549343,2361.0,2360.9,0.8328]
[1747630597477,4.23531404,2361.1,2360.9,0.8328]
[1747630597649,4.23507946,2361.3,2360.9,0.8328]
[1747630597855,4.23503302,2361.3,2360.9,1.96828]
[1747630598064,4.23524336,2361.2,2360.9,1.96828]
[1747630598271,4.23513808,2361.2,2360.9,1.96828]
[1747630598479,5.01026111,2361.7,2360.9,1.96828]
[1747630598480,4.23540397,2361.1,2360.9,1.96828]
[1747630598678,4.23461799,2361.5,2361.0,10.519]
[1747630598990,4.23548488,2361.1,2361.0,10.519]
[1747630599705,4.235013,2361.3,2361.0,11.80001634]
[1747630599895,4.23508397,2361.3,2361.0,11.80001634]
[1747630600098,4.23510663,2361.3,2361.0,11.80001634]
[1747630600401,4.23368284,2362.1,2361.1,9.317]
[1747630600585,4.23343409,2362.2,2361.3,8.0]
[1747630601082,4.23495532,2361.3,2361.2,13.8066501]
[1747630601280,4.23495532,2361.3,2361.2,10.519]
[1747630601885,4.23486182,2361.4,2361.2,10.519]
[1747630602082,0.7576,2361.8,2361.2,10.519]
[1747630602490,4.23370025,2362.0,2361.2,10.519]
[1747630602678,4.23453642,2361.6,2361.3,10.519]
[1747630602876,4.23459665,2361.5,2361.4,1.0519]
[1747630603071,4.23453595,2361.6,2361.4,1.0519]
[1747630603272,4.23355621,2362.1,2361.4,1.0519]
[1747630603475,4.23412368,2361.8,2361.4,1.0519]
[1747630603677,1.44426667,2362.5,2361.5,10.518]
[1747630603877,1.44426667,2362.5,2361.5,14.75257368]
[1747630604072,4.23392608,2361.9,2361.6,0.808]
[1747630604401,4.23397132,2361.9,2361.6,0.808]
[1747630604590,5.67723429,2362.5,2361.6,0.808]
[1747630604899,4.23362273,2362.1,2361.7,1.1326]
[1747630605306,4.23388803,2361.9,2361.7,1.1326]
[1747630605671,4.23384189,2362.0,2361.7,1.1326]
[1747630605865,4.23386101,2362.0,2361.7,1.1326]
[1747630606071,4.23405876,2361.8,2361.7,1.1326]
[1747630606272,4.23405876,2361.8,2361.7,10.517]
[1747630606473,4.23396646,2361.9,2361.7,10.517]
[1747630606669,4.23358565,2362.1,2361.7,10.517]
[1747630606874,0.66666667,2362.5,2361.8,0.8273]
[1747630607092,4.23364038,2362.1,2361.8,0.8273]
[1747630607291,4.23370025,2362.0,2361.9,10.517]
[1747630607517,4.23421457,2361.8,2361.4,0.55]
[1747630607825,4.23374322,2362.0,2361.5,20.991]
[1747630608187,4.23405099,2361.9,2361.5,20.991]
[1747630608409,4.23395162,2361.9,2361.3,0.7595]
[1747630608608,4.23395162,2361.9,2361.4,21.47046217]
[1747630608771,0.66666667,2362.5,2361.4,0.49946217]
[1747630608973,4.2333418,2362.2,2361.3,0.7595]
[1747630609232,4.23456647,2361.6,2361.4,10.517]
[1747630609518,4.23400716,2361.9,2361.4,14.75176002]
[1747630609714,0.822,2362.4,2361.4,10.517]
[1747630609882,4.23388066,2361.9,2361.4,14.75167213]
[1747630610084,4.23388066,2361.9,2361.5,1.55111721]
[1747630610418,4.23360759,2362.1,2361.6,4.23439789]
[1747630610575,4.23360759,2362.1,2361.5,5.7856269]
[1747630610776,4.23360759,2362.1,2361.6,4.23441359]
[1747630611038,4.23371354,2362.0,2361.6,10.414]
[1747630611333,4.23398011,2361.9,2361.7,12.05396172]
[1747630611838,4.23359483,2362.1,2361.7,12.05396172]
[1747630612203,4.23345494,2362.2,2361.8,0.7692]
[1747630612525,4.2329834,2362.4,2361.8,5.00322574]
[1747630612727,4.2329834,2362.4,2361.9,5.93956394]
[1747630612927,4.2329834,2362.4,2361.9,1.70571875]
[1747630613241,4.23335507,2362.2,2362.0,18.52159562]
[1747630613537,4.23352101,2362.1,2362.0,18.79275694]
[1747630613737,4.23352101,2362.1,2362.0,29.22575694]
[1747630613940,4.23325525,2362.3,2362.0,32.39582451]
[1747630614242,4.89961188,2362.5,2362.1,0.23659562]
[1747630614243,4.2329834,2362.4,2362.1,0.23659562]
[1747630614445,4.2333418,2362.2,2362.1,10.66959562]
[1747630614751,4.2333418,2362.2,2362.1,10.433]
[1747630615538,4.23332053,2362.3,2362.1,10.433]
[1747630615742,0.66666667,2362.5,2362.1,2.8718]
[1747630615909,4.23316259,2362.3,2362.2,10.432]
[1747630618211,4.23352101,2362.1,2362.0,18.285]
[1747630618427,4.23352101,2362.1,2362.0,28.717]
[1747630618623,4.23342312,2362.2,2362.0,28.717]
[1747630618851,4.23352101,2362.1,2362.0,28.717]
[1747630619141,4.23342888,2362.2,2362.0,28.717]
[1747630619347,4.23342888,2362.2,2362.1,0.27183077]
[1747630620246,4.23342888,2362.2,2362.1,0.50861625]
[1747630620451,0.66666667,2362.5,2362.1,0.50861625]
[1747630620452,4.89957522,2362.5,2362.1,3.43117787]
[1747630620657,4.23307466,2362.4,2362.1,3.43117787]
[1747630620809,4.23307466,2362.4,2362.2,0.27183077]
[1747630621221,4.89962036,2362.5,2362.2,0.27183077]
[1747630621422,0.66666667,2362.5,2362.3,0.27911161]
[1747630621648,0.66666667,2362.5,2362.3,0.23678548]
[1747630621822,0.66666667,2362.5,2362.4,0.8078]
[1747630622018,4.2329834,2362.4,2362.3,0.23678548]
[1747630622267,0.66666667,2362.5,2362.3,1.05048548]
[1747630622458,0.66666667,2362.5,2362.4,0.45690191]
[1747630622659,0.66666667,2362.5,2362.4,0.72873268]
[1747630622857,0.66666667,2362.5,2362.4,0.96551816]
[1747630623953,0.66666667,2362.5,2362.4,5.74850156]
[1747630624151,0.66666667,2362.5,2362.4,13.74850156]
[1747630624322,0.66666667,2362.5,2362.4,30.27851816]
[1747630624725,0.66666667,2362.5,2362.4,34.51150156]
[1747630625853,0.66666667,2362.5,2362.4,11.39551816]
[1747630626052,0.66666667,2362.5,2362.4,10.93861625]
[1747630626251,0.66666667,2362.5,2362.4,11.27648293]
[1747630626445,4.8994709,2362.5,2362.4,11.27648293]
[1747630626946,0.66666667,2362.5,2362.4,11.27648293]
[1747630627255,4.8994709,2362.5,2362.4,11.27648293]
[1747630627455,4.8994709,2362.5,2362.4,0.84648293]
[1747630627662,4.8994709,2362.5,2362.4,11.27648293]
[1747630628035,4.8994709,2362.5,2362.4,0.84648293]
[1747630628390,4.8994709,2362.5,2362.4,11.27648293]
[1747630628677,4.8994709,2362.5,2362.4,11.03969745]
[1747630628841,4.8994709,2362.5,2362.4,0.60969745]
[1747630629236,0.66666667,2362.5,2362.4,1.39999745]
[1747630629535,0.66666667,2362.5,2362.4,14.79113122]
[1747630629847,0.66666667,2362.5,2362.4,14.45326454]
[1747630630259,10.8871,2363.8,2363.0,5.01245437]
[1747630630438,4.23094241,2363.6,2363.1,14.66072685]
[1747630630634,4.2302504,2364.0,2363.2,8.1535238]
[1747630630635,4.2301567,2364.0,2363.2,8.1535238]
[1747630630846,4.2305991,2363.8,2363.4,0.55]
[1747630631242,4.23077047,2363.7,2363.4,0.55]
[1747630631443,4.23077047,2363.7,2363.4,0.32235447]
[1747630631648,4.23094016,2363.6,2363.4,10.329]
[1747630631849,4.23094016,2363.6,2363.5,0.23651155]
[1747630632563,4.23052309,2363.8,2363.5,0.23651155]
[1747630632564,4.23077127,2363.7,2363.5,0.23651155]
[1747630632765,4.23077127,2363.7,2363.6,10.429]
[1747630633075,4.23000493,2364.1,2363.6,13.35113423]
[1747630633239,0.7585,2364.4,2363.7,0.55]
[1747630633448,4.22952528,2364.4,2363.8,0.23651155]
[1747630633773,4.22962363,2364.3,2363.9,18.826]
[1747630633948,0.784,2364.7,2364.0,10.326]
[1747630634149,4.22941902,2364.4,2364.1,10.428]
[1747630634349,4.22924498,2364.5,2364.2,1.3824]
[1747630634561,4.22797226,2365.2,2364.3,20.754]
[1747630634744,4.2294028,2364.4,2364.3,20.754]
[1747630635264,4.22929771,2364.5,2364.3,10.428]
[1747630635576,0.7693,2364.7,2363.9,19.0523]
[1747630635774,4.2294028,2364.4,2364.3,10.428]
[1747630636399,4.99826871,2364.7,2363.9,19.0523]
[1747630636602,4.22993951,2364.1,2364.0,10.425]
[1747630637195,4.23011844,2364.0,2363.9,18.276]
[1747630637495,4.23011844,2364.0,2363.9,28.701]
[1747630637882,4.23011844,2364.0,2363.9,29.05413786]
[1747630638184,4.2293199,2364.5,2363.9,29.05413786]
[1747630638389,4.23011844,2364.0,2363.9,29.05413786]
[1747630638771,5.01001844,2364.0,2363.9,18.62913786]
[1747630638974,4.23011844,2364.0,2363.9,18.62913786]
[1747630639395,4.23011844,2364.0,2363.9,29.05413786]
[1747630639600,4.23011844,2364.0,2363.9,18.276]
[1747630642477,4.22996479,2364.1,2363.9,18.276]
[1747630642478,4.22970937,2364.3,2363.9,18.276]
[1747630642709,4.22978042,2364.2,2363.9,19.30451273]
[1747630642903,4.22967035,2364.3,2363.9,19.30451273]
[1747630643099,4.23011844,2364.0,2363.9,19.85451273]
[1747630643297,4.22888408,2364.7,2363.9,19.85451273]
[1747630643475,4.22978198,2364.2,2363.9,19.85451273]
[1747630643678,0.7907,2365.3,2364.0,1.3718]
[1747630643875,0.7907,2365.3,2364.2,0.55]
[1747630644082,4.22919795,2364.6,2364.0,4.9199927]
[1747630644316,4.22797226,2365.2,2364.1,21.187]
[1747630644609,4.22948822,2364.4,2364.1,21.187]
[1747630644785,4.22931528,2364.5,2364.1,21.187]
[1747630645398,4.22881743,2364.8,2364.1,25.41693564]
[1747630645602,0.7907,2365.3,2364.2,2.66616009]
[1747630645805,4.22886823,2364.7,2364.2,6.85363415]
[1747630645984,4.22886823,2364.7,2364.2,6.89592158]
[1747630646187,4.22855302,2364.9,2364.5,0.55]
[1747630646386,4.22838276,2365.0,2364.6,11.59383804]
[1747630646713,4.22761477,2365.4,2364.6,1.27583804]
[1747630646881,0.7724,2365.5,2364.7,10.318]
[1747630647087,4.2285086,2364.9,2364.8,10.318]
[1747630647301,4.99995424,2365.5,2364.8,11.1159]
[1747630647811,4.22835928,2365.0,2364.8,11.1159]
[1747630648016,4.22815102,2365.1,2364.8,11.1159]
[1747630648318,4.2283298,2365.0,2364.9,1.11159]
[1747630649218,4.2285086,2364.9,2364.8,28.584]
[1747630650217,4.2285086,2364.9,2364.8,18.266]
[1747630650414,4.2285086,2364.9,2364.8,28.583]
[1747630650913,4.2283298,2365.0,2364.8,28.583]
[1747630651294,4.22841735,2365.0,2364.8,28.583]
[1747630651503,4.22839652,2365.0,2364.8,31.4413]
[1747630651705,0.7724,2365.5,2364.8,31.4413]
[1747630651881,4.22823992,2365.1,2364.9,0.55]
[1747630652087,4.2285086,2364.9,2364.8,28.582]
[1747630652285,4.22761477,2365.4,2364.8,28.582]
[1747630652517,8.7724,2365.5,2364.8,28.582]
[1747630652813,0.7724,2365.5,2364.9,1.3602]
[1747630653021,4.2283298,2365.0,2364.9,0.8102]
[1747630653222,4.2283298,2365.0,2364.9,11.1262]
[1747630653413,4.22815548,2365.1,2364.9,11.1262]
[1747630653624,0.7724,2365.5,2365.0,3.77504]
[1747630653804,4.22787091,2365.3,2365.0,3.77504]
[1747630654411,4.2280179,2365.2,2365.0,3.77504]
[1747630654827,0.7724,2365.5,2365.0,3.77504]
[1747630654828,4.22815102,2365.1,2365.0,3.77504]
[1747630655188,4.22815102,2365.1,2365.0,0.55]
[1747630655603,4.2283298,2365.0,2364.9,11.1262]
[1747630655804,4.2285086,2364.9,2364.8,18.266]
[1747630656031,4.2285086,2364.9,2364.8,28.582]
[1747630657744,4.2285086,2364.9,2364.8,18.266]
[1747630657913,4.22958169,2364.3,2364.2,0.8232]
[1747630658107,4.22976059,2364.2,2364.1,18.262]
[1747630658353,4.22976059,2364.2,2364.1,28.577]
[1747630658644,4.22976059,2364.2,2364.1,18.262]
[1747630658860,4.22976059,2364.2,2364.1,28.577]
[1747630659065,4.22976059,2364.2,2364.1,32.6751927]
[1747630659348,4.23011844,2364.0,2363.9,0.33786668]
[1747630660043,3.22372856,2364.0,2363.9,0.33786668]
[1747630660247,4.23029738,2363.9,2363.8,10.315]
[1747630661180,0.8076,2364.2,2363.8,10.316]
[1747630661331,4.23029738,2363.9,2363.8,10.316]
[1747630661724,4.23085918,2363.6,2363.4,18.262]
[1747630661925,4.23085918,2363.6,2363.5,10.316]
[1747630663355,4.23067864,2363.7,2363.5,10.316]
[1747630663556,4.23067864,2363.7,2363.5,13.20537805]
[1747630663766,4.23011844,2364.0,2363.5,13.20537805]
[1747630663950,4.23077094,2363.7,2363.5,13.20537805]
[1747630664464,4.23058172,2363.8,2363.6,1.3654]
[1747630665263,98.12960144,2364.3,2363.6,1.3654]
[1747630665439,98.12960144,2364.3,2363.6,4.64867781]
[1747630665867,4.23039876,2363.9,2363.6,4.09867781]
[1747630666252,4.23057429,2363.8,2363.6,4.09867781]
[1747630666473,4.23065532,2363.7,2363.5,0.55]
[1747630666678,4.23065532,2363.7,2363.6,10.317]
[1747630667535,4.2304776,2363.8,2363.6,10.317]
[1747630667853,4.23029176,2364.0,2363.6,10.317]
[1747630668040,4.22978407,2364.2,2363.7,0.55]
[1747630668236,93.9,2364.3,2363.7,0.55]
[1747630668237,4.23045753,2363.9,2363.7,0.55]
[1747630668442,4.23016457,2364.0,2363.7,1.6367]
[1747630668663,4.23029738,2363.9,2363.7,1.6367]
[1747630668965,4.2302144,2364.0,2363.7,1.6367]
[1747630669154,4.23016287,2364.0,2363.7,1.6367]
[1747630669354,4.2299548,2364.1,2363.7,9.6367]
[1747630669355,4.23003076,2364.1,2363.7,9.6367]
[1747630669553,98.12962989,2364.3,2364.0,0.7642]
[1747630669747,98.12962989,2364.3,2364.1,10.318]
[1747630669951,93.9,2364.3,2364.1,10.318]
[1747630670355,93.9,2364.3,2364.2,0.55]
[1747630670534,93.9,2364.3,2364.2,8.55]
[1747630670738,93.9,2364.3,2364.2,10.74939953]
[1747630671439,93.9,2364.3,2364.2,14.97916012]
[1747630671740,93.9,2364.3,2364.2,15.81156012]
[1747630672164,93.9,2364.3,2364.2,16.08268284]
[1747630672746,93.9,2364.3,2364.2,11.85292225]
[1747630673072,93.9,2364.3,2364.2,16.08268284]
[1747630674073,93.9,2364.3,2364.2,11.85292225]
[1747630674273,93.9,2364.3,2364.2,22.14892225]
[1747630674475,93.9,2364.3,2364.2,32.44092225]
[1747630676361,93.9,2364.3,2364.2,36.67068284]
[1747630677391,89.9,2364.3,2364.2,36.67068284]
[1747630680814,89.9,2364.3,2364.2,11.85292225]
[1747630681103,89.9,2364.3,2364.2,32.43092225]
[1747630681313,89.9,2364.3,2364.2,18.80130225]
[1747630681820,94.12958169,2364.3,2364.2,8.50730225]
[1747630681984,94.12958169,2364.3,2364.2,18.80130225]
[1747630682838,94.12958169,2364.3,2364.2,10.80130225]
[1747630683116,94.12958169,2364.3,2364.2,0.23617953]
[1747630683319,94.12958169,2364.3,2364.0,0.33786668]
[1747630683320,4.22993951,2364.1,2364.0,0.33786668]
[1747630683522,4.22993951,2364.1,2364.0,10.63186668]
[1747630684130,4.22993951,2364.1,2364.0,0.33786668]
[1747630684596,89.9,2364.3,2364.1,0.55]
[1747630684796,4.22976059,2364.2,2364.0,9.44598657]
[1747630685177,4.22993951,2364.1,2364.0,0.55]
[1747630685580,4.23011844,2364.0,2363.9,18.295]
[1747630685817,4.23011844,2364.0,2363.9,10.295]
[1747630686182,4.23011844,2364.0,2363.9,10.53144271]
[1747630687434,4.23011844,2364.0,2363.9,10.295]
[1747630689017,4.23011844,2364.0,2363.4,18.262]
[1747630689217,4.23047635,2363.8,2363.7,10.295]
[1747630689827,4.23083432,2363.6,2363.5,0.23651033]
[1747630690323,4.2307908,2363.7,2363.4,18.262]
[1747630690489,4.2307908,2363.7,2363.4,21.1727]
[1747630690689,4.23061226,2363.8,2363.4,21.1727]
[1747630691001,4.23083782,2363.6,2363.4,21.1727]
[1747630691227,4.23074644,2363.7,2363.4,21.1727]
[1747630691922,4.23074644,2363.7,2363.5,0.23647004]
[1747630692719,4.23035685,2363.9,2363.5,3.170417]
[1747630692901,4.23020957,2364.0,2363.6,0.55]
[1747630693612,4.23020957,2364.0,2363.7,0.0423006]
[1747630693809,4.22980812,2364.2,2363.8,10.296]
[1747630694024,94.12972783,2364.3,2364.0,0.55]
[1747630694190,89.9,2364.3,2364.0,2.4421]
[1747630694534,89.9,2364.3,2364.0,6.67211657]
[1747630694738,89.9,2364.3,2364.2,0.55]
[1747630694945,89.9,2364.3,2364.2,15.2852237]
[1747630695238,89.9,2364.3,2364.2,11.32697046]
[1747630695523,89.9,2364.3,2364.2,17.30162554]
[1747630695703,89.9,2364.3,2364.2,13.09886495]
[1747630695900,94.12958169,2364.3,2364.2,11.35397046]
[1747630696134,94.12958169,2364.3,2364.2,1.05797046]
[1747630696338,89.9,2364.3,2364.2,10.53246311]
[1747630697527,89.9,2364.3,2364.2,11.08246311]
[1747630698333,94.12958169,2364.3,2364.2,11.08246311]
[1747630698702,94.12958169,2364.3,2364.2,10.53246311]
[1747630699053,94.12958169,2364.3,2364.2,0.23646311]
[1747630699217,94.12958169,2364.3,2364.2,10.53246311]
[1747630699746,94.12958169,2364.3,2364.2,10.296]
[1747630699914,94.12958169,2364.3,2364.1,10.296]
[1747630699915,89.9,2364.3,2364.1,10.296]
[1747630700111,4.22976059,2364.2,2364.1,10.296]
[1747630701746,4.22976059,2364.2,2364.1,10.259]
[1747630703334,4.22976059,2364.2,2363.6,0.55]
[1747630703537,4.23015297,2364.0,2363.7,10.66482837]
[1747630704038,4.23012675,2364.0,2363.8,0.23669112]
[1747630704225,89.9,2364.3,2363.8,0.23669112]
[1747630704423,4.23029738,2363.9,2363.8,0.78669112]
[1747630704618,4.23021595,2364.0,2363.9,0.23669112]
[1747630705221,4.230035,2364.1,2363.9,0.23669112]
[1747630707245,4.22995513,2364.1,2363.9,0.23669112]
[1747630707421,4.22983937,2364.2,2363.9,0.23669112]
[1747630707621,89.9,2364.3,2363.9,1.80490379]
[1747630707942,89.9,2364.3,2364.2,0.55]
[1747630708147,89.9,2364.3,2364.2,10.809]
[1747630708953,89.9,2364.3,2364.2,11.04569112]
[1747630709159,94.12958169,2364.3,2364.2,11.04569112]
[1747630709558,94.12958169,2364.3,2364.2,0.23669112]
[1747630709748,94.12958169,2364.3,2364.2,10.49569112]
[1747630710123,94.12958169,2364.3,2364.2,0.23669112]
[1747630710326,94.12958169,2364.3,2364.2,10.49569112]
[1747630710527,94.12958169,2364.3,2364.2,0.23669112]
[1747630710857,94.12958169,2364.3,2364.2,10.259]
[1747630711064,4.22993951,2364.1,2364.0,0.23669112]
[1747630711362,4.22993951,2364.1,2364.0,10.49569112]
[1747630711858,4.22993951,2364.1,2364.0,0.23669112]
[1747630712039,4.22993951,2364.1,2364.0,10.49569112]
[1747630713358,94.12969552,2364.3,2364.0,11.54526023]
[1747630713528,94.12969552,2364.3,2364.1,0.23669112]
[1747630713958,94.12958169,2364.3,2364.2,0.55]
[1747630714546,94.12958169,2364.3,2364.2,0.78669112]
[1747630714746,89.9,2364.3,2364.2,0.78669112]
[1747630714945,94.12958169,2364.3,2364.2,0.78669112]
[1747630715860,94.12958169,2364.3,2364.2,0.23669112]
[1747630716065,94.12958169,2364.3,2364.2,10.49569112]
[1747630716759,4.23011844,2364.0,2363.9,0.55]
[1747630716932,4.23011844,2364.0,2363.9,10.809]